fUSD/lending_fUSD_20260106
["ID","MTS","AMOUNT","RATE_DAILY","PERIOD"]
[400558025,1767717046243,-19266.48763918,0.00018,2]
[400558034,1767717275878,-1232.926,0.0001764,2]
[400558035,1767717275942,-162.848,0.0001764,2]
[400558036,1767717275988,-180.88260065,0.00017799,2]
[400558037,1767717276041,-180.88260063,0.0001785,2]
[400558038,1767717276080,-300.0,0.00017899,2]
[400558039,1767717276114,-250.0,0.000179,2]
[400558040,1767717276151,-9400.02124204,0.000179,2]
[400558041,1767717276195,-180.88260063,0.000179,2]
[400558042,1767717276232,-155.53371388,0.000179,2]
[400558043,1767717276268,-200.0,0.00017989,2]
[400558044,1767717276305,-157.35456451,0.00017989,2]
[400558045,1767717276341,-500.0,0.00017989,2]
[400558046,1767717276376,-212.69830481,0.00017989,2]
[400558047,1767717276411,-200.0,0.00017989,2]
[400558048,1767717276449,-200.0,0.00017989,2]
[400558049,1767717276484,-151.0,0.00017989,2]
[400558050,1767717276520,-151.0,0.00017989,2]
[400558051,1767717276556,-151.0,0.00017989,2]
[400558052,1767717276598,-151.0,0.00017989,2]
[400558053,1767717276634,-151.0,0.00017989,2]
[400558054,1767717276682,-151.0,0.00017989,2]
[400558055,1767717276730,-151.0,0.00017989,2]
[400558056,1767717276770,-151.0,0.00017989,2]
[400558057,1767717276807,-151.0,0.00017989,2]
[400558058,1767717276847,-151.0,0.00017989,2]
[400558059,1767717276890,-151.0,0.00017989,2]
[400558060,1767717276930,-500.0,0.00017999,2]
[400558061,1767717276968,-500.0,0.00017999,2]
[400558062,1767717277004,-509.38793221,0.00017999,2]
[400558063,1767717277049,-500.0,0.00017999,2]
[400558064,1767717277092,-500.0,0.00017999,2]
[400558065,1767717277134,-500.0,0.00017999,2]
[400558066,1767717277180,-500.0,0.00017999,2]
[400558067,1767717277220,-500.0,0.00017999,2]
[400558068,1767717277263,-500.0,0.00017999,2]
[400558069,1767717277303,-500.0,0.00017999,2]
[400558070,1767717277341,-500.0,0.00017999,2]
[400558071,1767717277383,-500.0,0.00017999,2]
[400558072,1767717277432,-500.0,0.00017999,2]
[400558073,1767717277468,-500.0,0.00017999,2]
[400558074,1767717277497,-500.0,0.00017999,2]
[400558075,1767717277525,-500.0,0.00017999,2]
[400558076,1767717277552,-500.0,0.00017999,2]
[400558077,1767717277580,-500.0,0.00017999,2]
[400558078,1767717278029,-500.0,0.00017999,2]
[400558079,1767717278063,-500.0,0.00017999,2]
[400558080,1767717278092,-500.0,0.00017999,2]
[400558081,1767717278122,-624.03043963,0.00017999,2]
[400558082,1767717278149,-500.0,0.00017999,2]
[400558083,1767717278177,-500.0,0.00017999,2]
[400558084,1767717278204,-500.0,0.00017999,2]
[400558085,1767717278235,-500.0,0.00017999,2]
[400558086,1767717278261,-499.99999999,0.00017999,2]
[400558087,1767717278289,-149299.55200102,0.00018,2]
[400558088,1767717317135,158.2,0.00032877,120]
[400558089,1767717324580,502.0,0.00032877,120]
[400558108,1767717811552,170.0,0.00032,120]
[400558109,1767717824021,-166.66,0.00016647,2]
[400558110,1767717824042,-166.66,0.00016998,2]
[400558111,1767717824065,-166.66,0.00017348,2]
[400558112,1767717824087,-8001.82,0.00017514,2]
[400558113,1767717824112,-250.98669485,0.00017599,2]
[400558114,1767717824141,-166.66,0.00017698,2]
[400558115,1767717824162,-247.812845,0.00017702,2]
[400558116,1767717824183,-250.98669483,0.0001775,2]
[400558117,1767717824206,-302.0,0.00017889,2]
[400558118,1767717824228,-1200.0,0.00017899,2]
[400558119,1767717824249,-300.0,0.00017899,2]
[400558120,1767717824271,-173.19162938,0.000179,2]
[400558121,1767717824292,-174.57944132,0.000179,2]
[400558122,1767717824316,-155.53371387,0.000179,2]
[400558123,1767717824337,-402.80568561,0.000179,2]
[400558124,1767717824360,-250.98669483,0.000179,2]
[400558125,1767717824381,-300.0,0.00017988,2]
[400558126,1767717824403,-263.1,0.00017989,2]
[400558127,1767717824424,-200.0,0.00017989,2]
[400558128,1767717824445,-500.0,0.00017989,2]
[400558129,1767717824468,-151.0,0.00017989,2]
[400558130,1767717824489,-151.0,0.00017989,2]
[400558131,1767717824509,-151.0,0.00017989,2]
[400558132,1767717824532,-151.0,0.00017989,2]
[400558133,1767717824555,-151.0,0.00017989,2]
[400558134,1767717824576,-151.0,0.00017989,2]
[400558135,1767717824599,-151.0,0.00017989,2]
[400558136,1767717824621,-151.0,0.00017989,2]
[400558137,1767717824644,-151.0,0.00017989,2]
[400558138,1767717824665,-151.0,0.00017989,2]
[400558139,1767717824686,-151.0,0.00017989,2]
[400558140,1767717824706,-151.0,0.00017997,2]
[400558141,1767717824731,-151.0,0.00017997,2]
[400558142,1767717824750,-3627.71179225,0.00017998,2]
[400558143,1767717824773,-986.341,0.00017998,2]
[400558144,1767717824797,-366.62,0.00017999,2]
[400558145,1767717824822,-500.0,0.00017999,2]
[400558146,1767717824846,-261.30917528,0.00017999,2]
[400558147,1767717824874,-263.22870966,0.00017999,2]
[400558148,1767717824901,-13411.49673397,0.00017999,2]
[400558149,1767717824924,-500.0,0.00017999,2]
[400558150,1767717824946,-321.68788026,0.00017999,2]
[400558151,1767717824970,-64158.16130889,0.00018,2]
[400558157,1767717954692,165.0,0.00032877,120]
[400558159,1767717971549,-151.0,0.00017254,2]
[400558160,1767717971571,-195.0,0.00017532,2]
[400558161,1767717971592,-300.0,0.00017899,2]
[400558162,1767717971614,-1200.0,0.00017899,2]
[400558163,1767717971637,-8910.18015997,0.000179,2]
[400558164,1767717971659,-2432.326435,0.00017989,2]
[400558165,1767717971685,-2786.85787153,0.00017989,2]
[400558166,1767717971705,-1998.63196532,0.0001799,2]
[400558167,1767717971725,-300.0,0.00017999,2]
[400558168,1767717971749,-81726.00356818,0.00018,2]
[400558173,1767718152146,-966.23627406,0.00017195,2]
[400558174,1767718153295,-4787.44511694,0.00017195,2]
[400558175,1767718153316,-151.0,0.00017311,2]
[400558176,1767718153339,-155.53371387,0.000179,2]
[400558177,1767718153360,-164.01,0.000179,2]
[400558178,1767718153381,-151.0,0.00017989,2]
[400558179,1767718153411,-151.0,0.00017989,2]
[400558180,1767718153446,-151.0,0.00017989,2]
[400558181,1767718153468,-151.0,0.00017989,2]
[400558182,1767718153489,-151.0,0.00017989,2]
[400558183,1767718153509,-151.0,0.00017989,2]
[400558184,1767718153530,-151.0,0.00017989,2]
[400558185,1767718153550,-151.0,0.00017989,2]
[400558186,1767718153570,-151.0,0.00017989,2]
[400558187,1767718153592,-151.0,0.00017989,2]
[400558188,1767718153613,-151.0,0.00017989,2]
[400558189,1767718153637,-3081.01116919,0.00018,2]
[400558190,1767718154364,-10000.0,0.00018,2]
[400558191,1767718154820,-10000.0,0.00018,2]
[400558192,1767718156618,-10000.0,0.00018,2]
[400558193,1767718157008,-10000.0,0.00018,2]
[400558194,1767718157400,-10000.0,0.00018,2]
[400558195,1767718158087,-10000.0,0.00018,2]
[400558196,1767718158740,-10000.0,0.00018,2]
[400558197,1767718159344,-10000.0,0.00018,2]
[400558198,1767718160856,-10000.0,0.00018,2]
[400558199,1767718161381,-10000.0,0.00018,2]
[400558200,1767718162419,-10000.0,0.00018,2]
[400558201,1767718163035,-10000.0,0.00018,2]
[400558202,1767718163968,-10000.0,0.00018,2]
[400558203,1767718164352,-10000.0,0.00018,2]
[400558204,1767718165224,-10000.0,0.00018,2]
[400558205,1767718166219,-10000.0,0.00018,2]
[400558206,1767718166972,-10000.0,0.00018,2]
[400558207,1767718171389,-6481.0,0.00018,2]
[400558208,1767718229074,399.999999,0.00032876,120]
[400558234,1767718232006,-2455.1720478,0.000179,2]
[400558237,1767718232016,-882.827233,0.000179,2]
[400558240,1767718232026,-1226.81908198,0.000179,2]
[400558241,1767718232037,-279.26125715,0.000179,2]
[400558259,1767718232770,-500.0,0.000179,2]
[400558260,1767718232790,-1954.0,0.000179,2]
[400558261,1767718232801,-1650.0,0.000179,2]
[400558262,1767718232830,-2409.08180487,0.000179,2]
[400558263,1767718232841,-300.0,0.00017999,2]
[400558264,1767718232851,-1200.0,0.00017999,2]
[400558265,1767718232861,-39936.05316166,0.00018,2]
[400558266,1767718232873,-2400.0,0.00018,2]
[400558267,1767718238049,-28358.10237597,0.00018,2]
[400558268,1767718238331,-4919.54294172,0.00018,2]
[400558269,1767718238343,-336.57510276,0.00018,2]
[400558270,1767718238354,-13465.50799198,0.00018,2]
[400558271,1767718238366,-3759.55035085,0.00018,2]
[400558272,1767718238377,-8179.50801308,0.00018,2]
[400558273,1767718238390,-847.97755342,0.00018,2]
[400558274,1767718238401,-15801.2485822,0.00018,2]
[400558278,1767718238449,-202832.30569264,0.00018,2]
[400558280,1767718238460,-15703.96830312,0.00018,2]
[400558282,1767718238472,-625.53,0.00018,2]
[400558284,1767718238483,-39330.06408474,0.00018,2]
[400558288,1767718238495,-706.55591932,0.00018,2]
[400558292,1767718238525,-304.0,0.00018,2]
[400558294,1767718238537,-500.0,0.00018,2]
[400558416,1767718240107,-3745.88,0.00018,2]
[400558417,1767718240119,-473.93335833,0.00018,2]
[400558419,1767718240131,-46111.49999994,0.00018,2]
[400558423,1767718240167,-922.18333418,0.00018,2]
[400558426,1767718240178,-2911.12206947,0.00018,2]
[400558428,1767718240189,-413.13075268,0.00018,2]
[400558430,1767718240200,-5542.46572527,0.00018,2]
[400558449,1767718240398,-8729.85355906,0.00018,2]
[400558452,1767718240411,-500.0,0.00018,2]
[400558454,1767718240422,-420.86114321,0.00018,2]
[400558487,1767718240748,-3391.7295467,0.00018,2]
[400558783,1767718243682,-261.98000005,0.00018,2]
[400558785,1767718243693,-688.7483796,0.00018,2]
[400558787,1767718243706,-387.72552554,0.00018,2]
[400558790,1767718243717,-325.8093,0.00018,2]
[400558798,1767718243788,-1797.61271401,0.00018,2]
[400558800,1767718243799,-512.6900035,0.00018,2]
[400558867,1767718244421,-2584.11823244,0.00018,2]
[400558871,1767718244476,-393.39206397,0.00018,2]
[400559043,1767718246062,-1848.0,0.00018,2]
[400559117,1767718246811,-459.37326215,0.00018,2]
[400559833,1767718365771,1200.15,9.211e-05,2]
[400559834,1767718365972,1200.15,9.696e-05,2]
[400559835,1767718366272,1200.15,0.00010181,2]
[400559836,1767718366499,1200.15,0.00010665,2]
[400559837,1767718366727,1200.15,0.0001115,2]
[400559838,1767718366963,1200.15,0.00011635,2]
[400559839,1767718367175,1200.15,0.0001212,2]
[400559840,1767718367394,1200.15,0.00012605,2]
[400559841,1767718367615,398.81,0.00013089,2]
[400559842,1767718367638,801.34,0.00013089,2]
[400559843,1767718367856,1200.15,0.00013574,2]
[400559844,1767718368061,1200.15,0.00014059,2]
[400559845,1767718368281,1200.15,0.00014544,2]
[400559846,1767718368709,1200.15,0.00015029,2]
[400559847,1767718369396,1200.15,0.00015513,2]
[400559848,1767718369494,1200.15,0.00015998,2]
[400559849,1767718382354,1000.0,0.00016,2]
[400559857,1767718395196,1000.0,0.000155,2]
[400559858,1767718460290,5000.0,0.00015,7]
[400559926,1767718833982,-288.0,0.00016438,2]
[400559927,1767718849863,463.3,0.00025632,120]
[400559943,1767719040129,10000.0,0.00032877,120]
[400559944,1767719052092,10000.0,0.00032877,120]
[400559945,1767719061281,10000.0,0.00032877,120]
[400559946,1767719073876,10000.0,0.00032877,120]
[400559956,1767719248176,-3345.2,0.00016438,2]
[400559957,1767719248199,-1200.15,0.00016483,2]
[400559958,1767719248218,-1031.96,0.0001691,2]
[400559959,1767719248238,-150.0,0.00016931,2]
[400559960,1767719248259,-1200.15,0.00016968,2]
[400559961,1767719248283,-3546.96,0.00016991,2]
[400559962,1767719248304,-1000.0,0.00017,2]
[400559963,1767719248324,-763.85,0.00017053,2]
[400559964,1767719248344,-300.0,0.00017072,2]
[400559965,1767719248365,-1200.0,0.00017072,2]
[400559966,1767719248386,-3189.82,0.00017073,2]
[400559967,1767719248408,-463.3,0.00017088,2]
[400559968,1767719248429,-171.88,0.00017246,2]
[400559969,1767719248450,-352.24,0.00017335,2]
[400559970,1767719248471,-151.0,0.00017425,2]
[400559971,1767719248492,-1200.15,0.00017453,2]
[400559972,1767719248512,-1600.62354172,0.000175,2]
[400559973,1767719248535,-574.28009698,0.00017718,2]
[400559974,1767719248562,-220.0,0.00017727,2]
[400559975,1767719248584,-1195.8,0.00017728,2]
[400559976,1767719248605,-1197.08,0.00017728,2]
[400559977,1767719248628,-21945.5563613,0.00017728,2]
[400559983,1767719359105,-300.0,0.0001699,2]
[400559984,1767719359129,-12868.65,0.00016991,2]
[400559985,1767719359160,-1809.49,0.00017313,2]
[400559986,1767719359182,-151.0,0.0001754,2]
[400559987,1767719359203,-7414.9136387,0.00017728,2]
[400559988,1767719359226,-2094.78,0.00017728,2]
[400559989,1767719359246,-150.99,0.00017728,2]
[400559990,1767719359266,-499.99,0.00017728,2]
[400559991,1767719359286,-3203.34,0.00017728,2]
[400559992,1767719359307,-209.78507302,0.00017728,2]
[400559998,1767719432168,-5170.52,0.00016991,2]
[400559999,1767719432178,-151.0,0.00017555,2]
[400560000,1767719432189,-1879.2754587,0.00017556,2]
[400560001,1767719432198,-220.0,0.00017727,2]
[400560002,1767719432208,-1200.0,0.00017727,2]
[400560003,1767719432219,-13806.94492698,0.00017728,2]
[400560004,1767719432229,-999.99,0.00017728,2]
[400560005,1767719432239,-173.19162938,0.000179,2]
[400560006,1767719432249,-549.82159622,0.000179,2]
[400560007,1767719432258,-7256.12937182,0.000179,2]
[400560008,1767719432267,-393.24757681,0.000179,2]
[400560009,1767719432277,-1200.15,0.00017937,2]
[400560010,1767719432286,-151.0,0.00017962,2]
[400560011,1767719432295,-151.0,0.00017962,2]
[400560012,1767719432305,-151.0,0.00017962,2]
[400560013,1767719432314,-151.0,0.00017962,2]
[400560014,1767719432323,-151.0,0.00017962,2]
[400560015,1767719432333,-151.0,0.00017962,2]
[400560016,1767719432343,-151.0,0.00017962,2]
[400560017,1767719432352,-151.0,0.00017962,2]
[400560018,1767719432362,-151.0,0.00017962,2]
[400560019,1767719432371,-151.0,0.00017962,2]
[400560020,1767719432380,-151.0,0.00017962,2]
[400560021,1767719432390,-4314.3259,0.00017973,2]
[400560022,1767719432399,-352.24,0.00017985,2]
[400560023,1767719432408,-330.58,0.00017989,2]
[400560024,1767719432417,-216.96587002,0.00017999,2]
[400560025,1767719432427,-238.89324852,0.00017999,2]
[400560026,1767719432437,-1103.231,0.00017999,2]
[400560027,1767719432446,-156.825,0.00017999,2]
[400560028,1767719432456,-195.31275124,0.00017999,2]
[400560029,1767719432466,-500.0,0.00017999,2]
[400560030,1767719432476,-500.0,0.00017999,2]
[400560032,1767719432486,-500.0,0.00017999,2]
[400560034,1767719432495,-500.0,0.00017999,2]
[400560036,1767719432505,-441.13717031,0.00017999,2]
[400560048,1767719438300,-58.86282969,0.00017999,2]
[400560049,1767719438310,-326.00177657,0.00017999,2]
[400560050,1767719438321,-288.90952296,0.00017999,2]
[400560051,1767719438331,-667.30222728,0.00017999,2]
[400560052,1767719438341,-667.30222728,0.00017999,2]
[400560053,1767719438352,-667.30222728,0.00017999,2]
[400560054,1767719438362,-667.30222728,0.00017999,2]
[400560055,1767719438372,-667.30222728,0.00017999,2]
[400560056,1767719438383,-667.30222728,0.00017999,2]
[400560057,1767719438394,-667.30222728,0.00017999,2]
[400560058,1767719438404,-667.30222728,0.00017999,2]
[400560059,1767719438415,-667.30222728,0.00017999,2]
[400560060,1767719438425,-667.30222728,0.00017999,2]
[400560061,1767719438435,-667.30222728,0.00017999,2]
[400560062,1767719438444,-667.30222728,0.00017999,2]
[400560063,1767719438454,-667.30222728,0.00017999,2]
[400560065,1767719438467,-667.30222728,0.00017999,2]
[400560067,1767719438476,-667.30222728,0.00017999,2]
[400560069,1767719438487,-667.30222728,0.00017999,2]
[400560071,1767719438497,-667.30222728,0.00017999,2]
[400560073,1767719438507,-40415.06978618,0.00018,2]
[400560077,1767719438536,-362058.53741181,0.00018,2]
[400560093,1767719440239,-162.5940235,0.000179,2]
[400560094,1767719440249,-47360.32557362,0.00018,2]
[400560095,1767719440260,-498.56809228,0.00018,2]
[400560096,1767719440272,-826.28059818,0.00018,2]
[400560097,1767719440345,-5341.58892367,0.00018,2]
[400560098,1767719440356,-645.04788305,0.00018,2]
[400560099,1767719440367,-702.27483618,0.00018,2]
[400560100,1767719440404,-4257.78598744,0.00018,2]
[400560101,1767719440415,-346.44108267,0.00018,2]
[400560102,1767719440427,-715.81811334,0.00018,2]
[400560103,1767719440507,-6913.50557726,0.00018,2]
[400560104,1767719440519,-4814.53071152,0.00018,2]
[400560114,1767719443983,-19.7217079,0.00018,2]
[400560115,1767719443996,-930.68984301,0.00018,2]
[400560116,1767719444024,-1265.80432423,0.00018,2]
[400560117,1767719444036,-603.2142,0.00018,2]
[400560118,1767719444050,-518.4036508,0.00018,2]
[400560119,1767719444062,-2979.06507186,0.00018,2]
[400560124,1767719446232,-1097.68314574,0.00018,2]
[400560125,1767719446285,-500.0,0.00018,2]
[400560126,1767719446340,-523.49586585,0.00018,2]
[400560127,1767719446351,-416.30793719,0.00018,2]
[400560128,1767719446362,-1096.12767636,0.00018,2]
[400560129,1767719446373,-48600.44295438,0.00018,2]
[400560130,1767719446384,-343.53915486,0.00018,2]
[400560131,1767719446399,-1497.7912857,0.00018,2]
[400560132,1767719446410,-924.53,0.00018,2]
[400560535,1767719630367,213.48132652,0.00030538,120]
[400560536,1767719674524,204.31,0.00014719,2]
[400560537,1767719706480,169.0,0.00031149,120]
[400560538,1767719707764,169.0,0.00032706,120]
[400560544,1767719735483,-204.31,0.00016191,2]
[400560545,1767719735510,-21467.24892731,0.00017297,2]
[400560557,1767719870291,203.68939035,0.00030538,120]
[400560579,1767720329410,10000.01,0.00016,2]
[400560580,1767720329436,10000.01,0.00016,2]
[400560581,1767720329461,10000.01,0.00016,2]
[400560582,1767720329484,10000.01,0.00016,2]
[400560583,1767720329508,10000.01,0.00016,2]
[400560584,1767720329535,3577.03633035,0.00016,2]
[400560585,1767720331807,-723.90239833,0.00016245,2]
[400560586,1767720331836,-3046.6374776,0.00016245,2]
[400560587,1767720331866,-1200.0,0.00016683,2]
[400560588,1767720332244,-600.0,0.00016684,2]
[400560589,1767720332272,-200.0,0.00016898,2]
[400560590,1767720332303,-240.42850701,0.00016927,2]
[400560591,1767720332332,-317.8102,0.00017,2]
[400560592,1767720332361,-250.0,0.00017123,2]
[400560593,1767720332395,-300.0,0.00017145,2]
[400560594,1767720332425,-1746.2,0.00017146,2]
[400560595,1767720332455,-500.0,0.00017146,2]
[400560596,1767720347166,-7106.59248666,0.00017297,2]
[400560597,1767720347523,-10000.01,0.00017297,2]
[400560598,1767720347741,-4198.99141397,0.00017297,2]
[400560599,1767720347765,-1602.02717206,0.00017297,2]
[400560600,1767720347976,-151.0,0.00017354,2]
[400560601,1767720348007,-151.0,0.00017354,2]
[400560602,1767720348038,-151.0,0.00017448,2]
[400560603,1767720348069,-151.0,0.00017448,2]
[400560604,1767720348100,-1031.566,0.00017662,2]
[400560605,1767720348130,-204.31,0.00017662,2]
[400560606,1767720348162,-151.0,0.0001768,2]
[400560607,1767720348312,-6018.258,0.00017718,2]
[400560608,1767720348348,-2301.85335789,0.00017718,2]
[400560609,1767720348379,-5396.30328422,0.00017718,2]
[400560610,1767720348390,-550.0,0.00017727,2]
[400560611,1767720348402,-299.99,0.00017728,4]
[400560612,1767720348412,-1451.86335789,0.00017728,2]
[400560613,1767720348433,-3548.12664211,0.00017728,2]
[400560614,1767720348443,-4150.03,0.00017728,2]
[400560615,1767720348479,-4150.05,0.00017728,2]
[400560616,1767720348508,-1699.91,0.00017728,2]
[400560617,1767720348581,-0.02,0.00017728,2]
[400560618,1767720348608,-9999.97,0.00017728,2]
[400560619,1767720348840,-10000.01,0.00017728,2]
[400560620,1767720349080,-4488.87,0.00017728,2]
[400560621,1767720349119,-1022.27,0.00017728,2]
[400560622,1767720349604,-1022.29,0.00017728,2]
[400560623,1767720349662,-2044.58,0.00017728,2]
[400560624,1767720349707,-5910.85,0.00017728,2]
[400560625,1767720349725,-7955.43,0.00017728,2]
[400560626,1767720349764,-2044.56,0.00017728,2]
[400560627,1767720349798,-1527.36,0.00017728,2]
[400560628,1767720349830,-150.99,0.00017728,2]
[400560629,1767720349858,-999.99,0.00017728,2]
[400560630,1767720350000,-554.21,0.0001787,2]
[400560631,1767720350044,-45.79,0.0001787,2]
[400560632,1767720350075,-250.0,0.0001787,2]
[400560633,1767720350105,-600.0,0.0001787,2]
[400560634,1767720350134,-1406.22670336,0.000179,2]
[400560635,1767720350222,-5395.97659328,0.000179,2]
[400560644,1767720392446,-10000.01,0.00017196,2]
[400560645,1767720392741,-10000.01,0.00017196,2]
[400560646,1767720394202,-10000.01,0.00017196,2]
[400560647,1767720394649,-273.67708903,0.00017195,2]
[400560648,1767720394683,-491.80698512,0.00017195,2]
[400560649,1767720394715,-349.28037104,0.00017195,2]
[400560650,1767720394745,-500.0,0.00017195,2]
[400560651,1767720395318,-389.78365146,0.00017195,2]
[400560652,1767720395354,-500.0,0.00017195,2]
[400560653,1767720395499,-5880.69745816,0.00017196,2]
[400560654,1767720395594,-389.78365146,0.00017196,2]
[400560655,1767720395651,-500.0,0.00017196,2]
[400560656,1767720395665,-8220.44269708,0.00017196,2]
[400560657,1767720395685,-10000.01,0.00017196,2]
[400560658,1767720395717,-10000.01,0.00017196,2]
[400560659,1767720395731,-10000.01,0.00017196,2]
[400560660,1767720395749,-10000.01,0.00017196,2]
[400560661,1767720395779,-10000.01,0.00017196,2]
[400560662,1767720395805,-10000.01,0.00017196,2]
[400560663,1767720395830,-10000.01,0.00017196,2]
[400560664,1767720395976,-10000.01,0.00017196,2]
[400560665,1767720396197,-10000.01,0.00017196,2]
[400560666,1767720396388,-10000.01,0.00017196,2]
[400560668,1767720397705,-3500.0,0.00017196,2]
[400560671,1767720425828,-10000.01,0.000162,5]
[400560672,1767720426249,-547.49992224,0.000162,5]
[400560673,1767720426279,-550.0,0.00017194,2]
[400560674,1767720426306,-336.20415203,0.00017195,2]
[400560675,1767720426337,-500.0,0.00017195,2]
[400560676,1767720426368,-500.0,0.00017195,2]
[400560677,1767720426401,-500.0,0.00017195,2]
[400560678,1767720426436,-500.0,0.00017195,2]
[400560679,1767720426468,-500.0,0.00017195,2]
[400560680,1767720426501,-500.0,0.00017195,2]
[400560681,1767720426531,-500.0,0.00017195,2]
[400560682,1767720426682,-500.0,0.00017195,2]
[400560683,1767720426712,-500.0,0.00017195,2]
[400560684,1767720426743,-500.0,0.00017195,2]
[400560685,1767720426775,-500.0,0.00017195,2]
[400560686,1767720426809,-500.0,0.00017195,2]
[400560687,1767720426841,-500.0,0.00017195,2]
[400560688,1767720426872,-500.0,0.00017195,2]
[400560689,1767720426905,-500.0,0.00017195,2]
[400560690,1767720426939,-500.0,0.00017195,2]
[400560691,1767720426974,-500.0,0.00017195,2]
[400560692,1767720427112,-500.0,0.00017195,2]
[400560693,1767720427142,-500.0,0.00017195,2]
[400560694,1767720427177,-500.0,0.00017195,2]
[400560695,1767720427207,-500.0,0.00017195,2]
[400560696,1767720427241,-500.0,0.00017195,2]
[400560697,1767720427274,-500.0,0.00017195,2]
[400560698,1767720427310,-500.0,0.00017195,2]
[400560699,1767720427340,-500.0,0.00017195,2]
[400560700,1767720427374,-500.0,0.00017195,2]
[400560701,1767720427406,-500.0,0.00017195,2]
[400560702,1767720427562,-500.0,0.00017195,2]
[400560703,1767720427809,-500.0,0.00017195,2]
[400560704,1767720427855,-535.51343136,0.00017195,2]
[400560705,1767720427889,-209.70225293,0.00017195,2]
[400560706,1767720427923,-500.0,0.00017195,2]
[400560707,1767720427957,-500.0,0.00017195,2]
[400560708,1767720427990,-500.0,0.00017195,2]
[400560709,1767720428025,-500.0,0.00017195,2]
[400560710,1767720428059,-500.0,0.00017195,2]
[400560711,1767720428095,-500.0,0.00017195,2]
[400560712,1767720428131,-9.57863142,0.00017195,2]
[400560713,1767720428354,-490.42136858,0.00017195,2]
[400560714,1767720428392,-500.0,0.00017195,2]
[400560715,1767720428432,-500.0,0.00017195,2]
[400560716,1767720428469,-500.0,0.00017195,2]
[400560717,1767720428507,-500.0,0.00017195,2]
[400560718,1767720428544,-500.0,0.00017195,2]
[400560719,1767720429609,-123.04322004,0.00017196,2]
[400560720,1767720429629,-500.0,0.00017196,2]
[400560721,1767720429645,-4019.16726284,0.00017196,2]
[400560722,1767720429684,-10000.01,0.00017196,2]
[400560723,1767720429729,-10000.01,0.00017196,2]
[400560724,1767720429781,-10000.01,0.00017196,2]
[400560725,1767720429826,-10000.01,0.00017196,2]
[400560726,1767720429907,-10000.01,0.00017196,2]
[400560727,1767720429928,-10000.01,0.00017196,2]
[400560728,1767720429977,-10000.01,0.00017196,2]
[400560729,1767720429993,-10000.01,0.00017196,2]
[400560730,1767720430024,-10000.01,0.00017196,2]
[400560731,1767720438650,-10000.01,0.00017196,2]
[400560732,1767720438832,-10000.01,0.00017196,2]
[400560733,1767720439016,-10000.01,0.00017196,2]
[400560734,1767720439211,-10000.01,0.00017196,2]
[400560735,1767720439383,-10000.01,0.00017196,2]
[400560736,1767720439574,-10000.01,0.00017196,2]
[400560737,1767720439775,-10000.01,0.00017196,2]
[400560738,1767720440059,-10000.01,0.00017196,2]
[400560739,1767720440198,-10000.01,0.00017196,2]
[400560740,1767720477825,166.66,0.00016362,2]
[400560741,1767720478051,166.66,0.00016706,2]
[400560742,1767720478267,166.66,0.00017051,2]
[400560743,1767720485801,9001.87313919,0.0001439,2]
[400560744,1767720496709,-1134.746718,0.0001711,2]